fUSD/lending_fUSD_20251013
["ID","MTS","AMOUNT","RATE_DAILY","PERIOD"]
[391095224,1760332241551,-500.0,0.00014379,2]
[391095225,1760332241561,-500.0,0.00014379,2]
[391095226,1760332241571,-500.0,0.00014379,2]
[391095227,1760332241580,-500.0,0.00014379,2]
[391095228,1760332241589,-500.0,0.00014379,2]
[391095229,1760332241600,-500.0,0.00014379,2]
[391095230,1760332241609,-377.53090386,0.00014379,2]
[391095231,1760332241619,-500.0,0.00014379,2]
[391095232,1760332241628,-500.0,0.00014379,2]
[391095233,1760332241637,-500.0,0.00014379,2]
[391095234,1760332241647,-500.0,0.00014379,2]
[391095235,1760332241657,-500.0,0.00014379,2]
[391095236,1760332241666,-500.0,0.00014379,2]
[391095237,1760332241674,-500.0,0.00014379,2]
[391095238,1760332241683,-500.0,0.00014379,2]
[391095239,1760332241693,-481.04456431,0.00014379,2]
[391095240,1760332241702,-500.0,0.00014379,2]
[391095241,1760332241711,-279.80702492,0.00014379,2]
[391095242,1760332241720,-302.0,0.00014379,2]
[391095243,1760332241729,-314.34105499,0.00014379,2]
[391095244,1760332241738,-500.0,0.00014379,2]
[391095245,1760332241747,-259.42739155,0.00014379,2]
[391095246,1760332241756,-109035.1843,0.0001438,2]
[391095247,1760332241766,-420.0,0.00014397,2]
[391095248,1760332241775,-10652.17309792,0.00014413,2]
[391095249,1760332241784,-150.0,0.00014427,2]
[391095250,1760332241793,-2500.0,0.00014427,2]
[391095251,1760332241802,-2500.0,0.00014427,2]
[391095252,1760332241811,-2500.0,0.00014427,2]
[391095253,1760332241821,-2500.0,0.00014427,2]
[391095254,1760332241831,-2500.0,0.00014427,2]
[391095255,1760332241842,-195.0,0.00014427,2]
[391095256,1760332241852,-300.0,0.00014427,2]
[391095257,1760332241862,-300.0,0.00014427,2]
[391095258,1760332241872,-250.0,0.00014427,2]
[391095259,1760332241881,-2000.0,0.00014427,2]
[391095260,1760332241891,-711.28679296,0.0001443,2]
[391095261,1760332241902,-1680.0,0.00014442,2]
[391095262,1760332241912,-2596.46366398,0.00014443,2]
[391095263,1760332241922,-11046.30350255,0.00014468,2]
[391095264,1760332241931,-2596.46366398,0.00014509,2]
[391095265,1760332241941,-11455.01673214,0.00014523,2]
[391095266,1760332241950,-625.0,0.0001455,2]
[391095267,1760332241959,-625.0,0.0001455,2]
[391095268,1760332241969,-200.0,0.00014561,2]
[391095269,1760332241979,-195.0,0.00014568,2]
[391095270,1760332241988,-150.0,0.00014568,2]
[391095271,1760332241998,-195.0,0.00014568,2]
[391095272,1760332242008,-250.0,0.00014568,2]
[391095273,1760332242019,-2000.0,0.00014568,2]
[391095274,1760332242031,-2596.46366398,0.00014574,2]
[391095275,1760332242041,-11878.85235123,0.00014578,2]
[391095276,1760332242051,-38403.6066932,0.00014591,2]
[391095277,1760332242062,-1000.0,0.000146,2]
[391095278,1760332242072,-1962.0,0.00014625,2]
[391095279,1760332242081,-12318.36988823,0.00014633,2]
[391095280,1760332242091,-2596.46366398,0.00014639,2]
[391095281,1760332242100,-1000.0,0.0001464,2]
[391095282,1760332242110,-199.64011585,0.00014641,2]
[391095283,1760332242119,-168.0,0.00014647,2]
[391095284,1760332242128,-150.0,0.00014652,2]
[391095285,1760332242137,-500.0,0.00014652,2]
[391095286,1760332242147,-150.0,0.00014652,2]
[391095287,1760332242157,-150.0,0.00014652,2]
[391095288,1760332242169,-150.0,0.00014652,2]
[391095289,1760332242179,-183.0,0.00014657,2]
[391095290,1760332242189,-168.0,0.00014677,2]
[391095291,1760332242201,-12774.14957409,0.00014688,2]
[391095292,1760332242211,-1895.5529761,0.00014699,2]
[391095293,1760332242221,-1000.0,0.000147,2]
[391095294,1760332242231,-2596.46366398,0.00014704,2]
[391095295,1760332242242,-500.0,0.00014706,2]
[391095296,1760332242251,-150.0,0.00014707,2]
[391095297,1760332242262,-150.0,0.00014707,2]
[391095298,1760332242271,-150.0,0.00014707,2]
[391095299,1760332242282,-1000.0,0.00014728,2]
[391095300,1760332242291,-1119.40471,0.0001473,2]
[391095301,1760332242300,-500.0,0.00014739,2]
[391095302,1760332242311,-150.0,0.00014739,2]
[391095303,1760332242321,-1310.0,0.00014739,2]
[391095304,1760332242332,-500.0,0.00014739,2]
[391095305,1760332242341,-19349.08383845,0.0001474,2]
[391095306,1760332242351,-151.0,0.00014741,2]
[391095307,1760332242361,-151.0,0.00014741,2]
[391095308,1760332242370,-13246.79310833,0.00014743,2]
[391095309,1760332242380,-1000.0,0.00014743,2]
[391095310,1760332242392,-168.0,0.00014746,2]
[391095311,1760332242403,-150.0,0.0001476,2]
[391095312,1760332242414,-500.0,0.00014761,2]
[391095313,1760332242423,-150.0,0.00014762,2]
[391095314,1760332242435,-150.0,0.00014762,2]
[391095315,1760332242444,-150.0,0.00014762,2]
[391095316,1760332242455,-2596.46366398,0.0001477,2]
[391095317,1760332242465,-8647.54089291,0.0001477,2]
[391095318,1760332242475,-174.95486343,0.0001477,2]
[391095319,1760332242486,-868.18416829,0.00014772,2]
[391095320,1760332242497,-1425.0,0.00014774,2]
[391095321,1760332242507,-279.90735855,0.00014777,2]
[391095322,1760332242516,-5000.0,0.0001478,2]
[391095323,1760332242526,-170.65449915,0.0001478,2]
[391095324,1760332242535,-300.0,0.00014784,2]
[391095325,1760332242544,-8647.54089286,0.00014784,2]
[391095326,1760332242554,-2783.217695,0.0001479,2]
[391095327,1760332242564,-500.0,0.00014794,2]
[391095328,1760332242573,-150.0,0.00014794,2]
[391095329,1760332242582,-1310.0,0.00014794,2]
[391095330,1760332242591,-500.0,0.00014794,2]
[391095331,1760332242600,-13736.92445334,0.00014798,2]
[391095332,1760332242609,-8647.54089286,0.00014799,2]
[391095333,1760332242618,-4111.85,0.000148,2]
[391095334,1760332242627,-226.05,0.000148,2]
[391095335,1760332242636,-8647.54089286,0.00014813,2]
[391095336,1760332242645,-500.0,0.00014816,2]
[391095337,1760332242654,-150.0,0.00014816,2]
[391095338,1760332242663,-150.0,0.00014816,2]
[391095339,1760332242672,-2199.3791651,0.00014821,2]
[391095341,1760332242682,-8647.54089286,0.00014828,2]
[391095342,1760332242691,-2596.46366398,0.00014835,2]
[391095343,1760332242700,-1000.0,0.00014836,2]
[391095345,1760332242709,-8647.54089286,0.00014842,2]
[391095347,1760332242720,-500.0,0.00014849,2]
[391095348,1760332242729,-150.0,0.00014849,2]
[391095349,1760332242738,-1310.0,0.00014849,2]
[391095350,1760332242747,-553.70413087,0.00014849,2]
[391095351,1760332242756,-8647.54089286,0.00014857,2]
[391095352,1760332242765,-500.0,0.00014865,2]
[391095353,1760332242775,-148726.75676,0.00014869,2]
[391095354,1760332242784,-258.94379578,0.00014869,2]
[391095357,1760332243943,-1858.48627222,0.00014869,2]
[391095358,1760332243952,-979.447789,0.00014869,2]
[391095359,1760332243962,-2117.430068,0.00014869,2]
[391095360,1760332243971,-979.447789,0.00014869,2]
[391095361,1760332243981,-2117.430068,0.00014869,2]
[391095362,1760332243991,-979.447789,0.00014869,2]
[391095363,1760332244000,-2117.430068,0.00014869,2]
[391095364,1760332244010,-979.447789,0.00014869,2]
[391095365,1760332244019,-151.0,0.00014869,2]
[391095366,1760332244030,-151.0,0.00014869,2]
[391095367,1760332244039,-151.0,0.00014869,2]
[391095368,1760332244048,-151.0,0.00014869,2]
[391095369,1760332244058,-489.885137,0.00014869,2]
[391095370,1760332244067,-151.0,0.00014869,2]
[391095371,1760332244076,-151.0,0.00014869,2]
[391095372,1760332244086,-151.964974,0.00014869,2]
[391095373,1760332244394,-489.885137,0.00014869,2]
[391095374,1760332244403,-151.0,0.00014869,2]
[391095375,1760332244413,-151.0,0.00014869,2]
[391095376,1760332244422,-152.21667,0.00014869,2]
[391095377,1760332244431,-489.885137,0.00014869,2]
[391095378,1760332244440,-151.0,0.00014869,2]
[391095379,1760332244449,-527.359623,0.00014869,2]
[391095380,1760332244459,-489.885137,0.00014869,2]
[391095381,1760332244468,-151.0,0.00014869,2]
[391095382,1760332244478,-527.359623,0.00014869,2]
[391095383,1760332244487,-151.0,0.00014869,2]
[391095384,1760332244496,-527.359623,0.00014869,2]
[391095385,1760332244505,-244.8986266,0.0001487,2]
[391095386,1760332244514,-1119.40471,0.0001487,2]
[391095387,1760332244523,-500.0,0.0001487,2]
[391095388,1760332244533,-8647.54089286,0.00014871,2]
[391095389,1760332244542,-150.0,0.00014871,2]
[391095390,1760332244552,-150.0,0.00014871,2]
[391095391,1760332244561,-183.0,0.00014872,2]
[391095392,1760332244570,-500.0,0.00014873,2]
[391095393,1760332244580,-500.0,0.00014873,2]
[391095394,1760332244589,-500.0,0.00014873,2]
[391095395,1760332244598,-172.56206533,0.00014873,2]
[391095396,1760332244607,-500.0,0.00014873,2]
[391095397,1760332244616,-251.85710336,0.00014873,2]
[391095398,1760332244625,-500.0,0.00014873,2]
[391095399,1760332244634,-150.0,0.00014874,2]
[391095400,1760332244643,-150.0,0.00014874,2]
[391095401,1760332244652,-150.0,0.00014874,2]
[391095402,1760332244662,-150.0,0.00014874,2]
[391095403,1760332244671,-500.0,0.00014874,2]
[391095404,1760332244680,-500.0,0.00014874,2]
[391095405,1760332244690,-150.0,0.00014874,2]
[391095406,1760332244699,-150.0,0.00014874,2]
[391095407,1760332244709,-150.14145982,0.00014874,2]
[391095408,1760332244718,-500.0,0.00014874,2]
[391095409,1760332244727,-208.03821972,0.00014874,2]
[391095410,1760332244736,-150.0,0.00014874,2]
[391095411,1760332244744,-150.0,0.00014874,2]
[391095412,1760332244753,-1018.59,0.00014874,2]
[391095413,1760332244764,-2856.0,0.00014879,2]
[391095414,1760332244773,-15368.70651603,0.00014879,2]
[391095415,1760332244782,-28343.1206332,0.00014879,2]
[391095416,1760332244791,-500.0,0.00014879,2]
[391095417,1760332244801,-500.0,0.00014879,2]
[391095418,1760332244810,-500.0,0.00014879,2]
[391095419,1760332244819,-500.0,0.00014879,2]
[391095420,1760332244827,-500.0,0.00014879,2]
[391095421,1760332244837,-500.0,0.00014879,2]
[391095422,1760332244846,-500.0,0.00014879,2]
[391095423,1760332244855,-500.0,0.00014879,2]
[391095424,1760332244864,-500.0,0.00014879,2]
[391095425,1760332244873,-500.0,0.00014879,2]
[391095426,1760332244883,-500.0,0.00014879,2]
[391095427,1760332244892,-500.0,0.00014879,2]
[391095428,1760332244902,-200.0,0.00014879,2]
[391095429,1760332244911,-151.0,0.00014879,2]
[391095430,1760332244920,-151.0,0.00014879,2]
[391095431,1760332244930,-151.0,0.00014879,2]
[391095432,1760332244939,-151.0,0.00014879,2]
[391095433,1760332244948,-152.217036,0.00014879,2]
[391095434,1760332244958,-151.0,0.00014879,2]
[391095435,1760332244967,-152.217036,0.00014879,2]
[391095436,1760332244977,-299.359082,0.00014879,2]
[391095437,1760332244986,-151.0,0.00014879,2]
[391095438,1760332244996,-152.217036,0.00014879,2]
[391095439,1760332245005,-299.359082,0.00014879,2]
[391095440,1760332245014,-151.0,0.00014879,2]
[391095441,1760332245023,-152.217036,0.00014879,2]
[391095442,1760332245033,-299.359082,0.00014879,2]
[391095443,1760332245042,-261.815446,0.00014879,2]
[391095444,1760332245051,-299.359082,0.00014879,2]
[391095445,1760332245060,-237.703251,0.00014879,2]
[391095446,1760332245069,-237.703251,0.00014879,2]
[391095447,1760332245079,-151.578571,0.00014879,2]
[391095448,1760332245088,-237.703251,0.00014879,2]
[391095449,1760332245096,-237.703251,0.00014879,2]
[391095450,1760332245106,-151.0,0.00014879,2]
[391095451,1760332245115,-151.0,0.00014879,2]
[391095452,1760332245124,-151.0,0.00014879,2]
[391095453,1760332245133,-525.19294,0.00014879,2]
[391095454,1760332245142,-525.19294,0.00014879,2]
[391095455,1760332245152,-151.0,0.00014879,2]
[391095456,1760332245161,-525.19294,0.00014879,2]
[391095457,1760332245173,-525.19294,0.00014879,2]
[391095458,1760332245183,-151.0,0.00014879,2]
[391095459,1760332245192,-384.754748,0.00014879,2]
[391095460,1760332245202,-384.754748,0.00014879,2]
[391095461,1760332245212,-384.754748,0.00014879,2]
[391095462,1760332245223,-384.754748,0.00014879,2]
[391095463,1760332245233,-151.0,0.00014879,2]
[391095464,1760332245243,-151.0,0.00014879,2]
[391095465,1760332245253,-151.0,0.00014879,2]
[391095466,1760332245262,-151.0,0.00014879,2]
[391095467,1760332245271,-178.094212,0.00014879,2]
[391095468,1760332245280,-151.0,0.00014879,2]
[391095469,1760332245289,-151.0,0.00014879,2]
[391095470,1760332245299,-178.094212,0.00014879,2]
[391095471,1760332245308,-151.0,0.00014879,2]
[391095472,1760332245317,-151.0,0.00014879,2]
[391095473,1760332245326,-1739.980142,0.00014879,2]
[391095474,1760332245335,-151.0,0.00014879,2]
[391095475,1760332245345,-178.094212,0.00014879,2]
[391095476,1760332245354,-151.0,0.00014879,2]
[391095477,1760332245363,-151.0,0.00014879,2]
[391095478,1760332245372,-151.0,0.00014879,2]
[391095479,1760332245381,-1739.980142,0.00014879,2]
[391095480,1760332245391,-151.0,0.00014879,2]
[391095481,1760332245400,-178.094212,0.00014879,2]
[391095482,1760332245409,-1739.980142,0.00014879,2]
[391095483,1760332245418,-151.0,0.00014879,2]
[391095484,1760332245427,-151.0,0.00014879,2]
[391095485,1760332245436,-188.918122,0.00014879,2]
[391095486,1760332245445,-151.0,0.00014879,2]
[391095487,1760332245454,-1739.980142,0.00014879,2]
[391095488,1760332245463,-152.042138,0.00014879,2]
[391095489,1760332245472,-907.273432,0.00014879,2]
[391095490,1760332245481,-151.0,0.00014879,2]
[391095491,1760332245490,-151.0,0.00014879,2]
[391095492,1760332245500,-907.273432,0.00014879,2]
[391095493,1760332245509,-151.0,0.00014879,2]
[391095494,1760332245518,-535.239042,0.00014879,2]
[391095495,1760332245528,-907.273432,0.00014879,2]
[391095496,1760332245537,-151.0,0.00014879,2]
[391095497,1760332245546,-535.239042,0.00014879,2]
[391095498,1760332245555,-151.0,0.00014879,2]
[391095499,1760332245565,-907.273432,0.00014879,2]
[391095500,1760332245574,-535.239042,0.00014879,2]
[391095501,1760332245583,-151.0,0.00014879,2]
[391095502,1760332245592,-535.239042,0.00014879,2]
[391095503,1760332245601,-888.669405,0.00014879,2]
[391095504,1760332245610,-25.5225462,0.00014879,2]
[391095505,1760332245628,-863.1468588,0.00014879,2]
[391095506,1760332245637,-151.0,0.00014879,2]
[391095507,1760332245647,-888.669405,0.00014879,2]
[391095508,1760332245656,-151.0,0.00014879,2]
[391095509,1760332245664,-888.669405,0.00014879,2]
[391095510,1760332245674,-151.0,0.00014879,2]
[391095511,1760332245683,-151.0,0.00014879,2]
[391095512,1760332245692,-484.258455,0.00014879,2]
[391095513,1760332245701,-484.258455,0.00014879,2]
[391095514,1760332245710,-484.258455,0.00014879,2]
[391095515,1760332245719,-484.258455,0.00014879,2]
[391095516,1760332245729,-154.026831,0.00014879,2]
[391095517,1760332245737,-154.026831,0.00014879,2]
[391095518,1760332245748,-154.026831,0.00014879,2]
[391095519,1760332245758,-106.4964182,0.00014879,2]
[391095522,1760332246204,-500.0,0.00014379,2]
[391095523,1760332246214,-148.26018982,0.00014379,2]
[391095526,1760332561701,-150.0,0.000131,2]
[391095527,1760332561726,-103.42906365,0.00013144,2]
[391095528,1760332568030,-66.56143635,0.00013144,2]
[391095529,1760332568053,-505.58,0.00013699,2]
[391095530,1760332568074,-3065.6,0.00013833,2]
[391095531,1760332568095,-510.7322,0.0001428,2]
[391095532,1760332568116,-300.0,0.00014305,2]
[391095533,1760332568139,-1200.0,0.00014328,2]
[391095534,1760332568162,-300.0,0.00014367,2]
[391095535,1760332568184,-2500.0,0.00014368,2]
[391095536,1760332568206,-300.0,0.00014474,2]
[391095537,1760332568228,-300.0,0.00014474,2]
[391095538,1760332568250,-324.7779696,0.00014474,2]
[391095539,1760332568275,-1421.66473207,0.00014699,2]
[391095540,1760332568300,-1000.0,0.00014713,2]
[391095541,1760332568321,-1425.0,0.00014723,2]
[391095542,1760332568343,-1780.08366198,0.00014769,2]
[391095543,1760332649017,302.0,0.00027397,120]
[391095545,1760332731013,-300.0,0.0001447,2]
[391095546,1760332750011,-682.0,0.0001447,2]
[391095547,1760332750034,-1066.24854905,0.00014582,2]
[391095548,1760332750056,-3251.75145095,0.00014589,2]
[391095549,1760332788202,756.0,0.0002739,120]
[391095550,1760333124880,365.88820122,0.000108,2]
[391095551,1760333135314,1098.85001053,9e-05,2]
[391095555,1760333160624,1337.63178825,8e-05,2]
[391095556,1760333160644,5351.32821182,8e-05,2]
[391095557,1760333240179,-4327.51682014,0.0001305,2]
[391095558,1760333240204,-151.47122656,0.00013399,2]
[391095559,1760333240235,-151.47122655,0.00013417,2]
[391095560,1760333240255,-151.47122655,0.00013434,2]
[391095561,1760333240276,-500.0,0.00013473,2]
[391095562,1760333240296,-500.0,0.00013473,2]
[391095563,1760333240317,-151.0,0.00013497,2]
[391095564,1760333240338,-150.0,0.00013498,2]
[391095565,1760333240358,-500.0,0.00013499,2]
[391095566,1760333240381,-500.0,0.00013499,2]
[391095567,1760333240403,-209.4,0.00013499,2]
[391095568,1760333240428,-500.0,0.00013499,2]
[391095569,1760333240452,-461.20090331,0.00013499,2]
[391095570,1760333240477,-500.0,0.00013499,2]
[391095571,1760333240501,-500.0,0.00013499,2]
[391095572,1760333240524,-500.0,0.00013499,2]
[391095573,1760333240557,-500.0,0.00013499,2]
[391095574,1760333240592,-500.0,0.00013499,2]
[391095575,1760333240614,-500.0,0.00013499,2]
[391095576,1760333240637,-500.0,0.00013499,2]
[391095577,1760333240660,-500.0,0.00013499,2]
[391095578,1760333240682,-500.0,0.00013499,2]
[391095579,1760333240705,-500.0,0.00013499,2]
[391095580,1760333240732,-500.0,0.00013499,2]
[391095581,1760333240756,-500.0,0.00013499,2]
[391095582,1760333240779,-500.0,0.00013499,2]
[391095583,1760333240803,-246.46859689,0.00013499,2]
[391095584,1760333240899,-253.53140311,0.00013499,2]
[391095585,1760333240925,-500.0,0.00013499,2]
[391095586,1760333240949,-500.0,0.00013499,2]
[391095587,1760333240972,-500.0,0.00013499,2]
[391095588,1760333240996,-500.0,0.00013499,2]
[391095589,1760333241018,-500.0,0.00013499,2]
[391095590,1760333241045,-500.0,0.00013499,2]
[391095591,1760333241069,-500.0,0.00013499,2]
[391095592,1760333241091,-500.0,0.00013499,2]
[391095593,1760333241114,-500.0,0.00013499,2]
[391095594,1760333241138,-500.0,0.00013499,2]
[391095595,1760333241162,-500.0,0.00013499,2]
[391095596,1760333241188,-579.70103536,0.00013499,2]
[391095597,1760333241208,-150.0,0.000135,2]
[391095598,1760333241228,-8516.76756153,0.000135,2]
[391095599,1760333241785,-15000.0,0.000135,2]
[391095600,1760333241955,-15000.0,0.000135,2]
[391095601,1760333242289,-15000.0,0.000135,2]
[391095602,1760333243500,-15000.0,0.000135,2]
[391095603,1760333243596,-15000.0,0.000135,2]
[391095604,1760333243677,-15000.0,0.000135,2]
[391095605,1760333243898,-15000.0,0.000135,2]
[391095606,1760333244273,-15000.0,0.000135,2]
[391095607,1760333244606,-15000.0,0.000135,2]
[391095608,1760333244934,-15000.0,0.000135,2]
[391095609,1760333245244,-15000.0,0.000135,2]
[391095610,1760333245643,-15000.0,0.000135,2]
[391095611,1760333246128,-15000.0,0.000135,2]
[391095612,1760333246474,-15000.0,0.000135,2]
[391095613,1760333246992,-891.27,0.00013499,2]
[391095614,1760333247016,-14108.73,0.000135,2]
[391095615,1760333247395,-15000.0,0.000135,2]
[391095616,1760333248338,-13547.92544153,0.000135,2]
[391095617,1760333256600,1452.07455847,0.000135,2]
[391095620,1760333295826,-1500.0,0.0001321,2]
[391095621,1760333295846,-291.66,0.00013223,2]
[391095622,1760333295866,-500.0,0.00013223,2]
[391095623,1760333295886,-250.0,0.00013361,2]
[391095624,1760333295908,-300.0,0.00013499,2]
[391095625,1760333295928,-12158.34,0.000135,2]
[391095626,1760333296741,-15000.0,0.000135,2]
[391095627,1760333316469,201.80319699,0.0002739,120]
[391095628,1760333316706,880.08089407,0.0001,2]
[391095631,1760333358162,-1559.34497733,0.000135,2]
[391095648,1760333431820,-207.0245671,0.00012962,2]
[391095649,1760333431829,-2000.0,0.00013248,2]
[391095650,1760333431839,-2000.0,0.00013468,2]
[391095651,1760333431848,-1639.4,0.00013534,2]
[391095652,1760333431859,-996.38757574,0.00013544,2]
[391095653,1760333431868,-316.3059,0.00013603,2]
[391095654,1760333431877,-996.38757573,0.00013695,2]
[391095655,1760333431887,-300.0,0.0001377,2]
[391095656,1760333431896,-300.0,0.0001377,2]
[391095657,1760333431904,-1200.0,0.0001377,2]
[391095658,1760333431913,-366.74770866,0.00013771,2]
[391095659,1760333431923,-891.27,0.00013773,2]
[391095660,1760333431932,-2751.0,0.00013795,2]
[391095661,1760333431941,-11050.82,0.00013804,2]
[391095662,1760333431951,-749.9438284,0.0001383,2]
[391095663,1760333431962,-220.0561716,0.0001383,2]
[391095664,1760333431972,-344.76,0.00013834,2]
[391095665,1760333431981,-996.38757573,0.00013845,2]
[391095666,1760333431990,-996.38757573,0.00013996,2]
[391095667,1760333432000,-150.0,0.00013999,2]
[391095668,1760333432009,-60045.87,0.00014,2]
[391095669,1760333432019,-891.27,0.00014047,2]
[391095670,1760333432028,-169.62632699,0.00014135,2]
[391095671,1760333432037,-305.32738858,0.00014135,2]
[391095672,1760333432046,-996.38757573,0.00014147,2]
[391095673,1760333432055,-151.0,0.00014163,2]
[391095674,1760333432065,-267.46074303,0.00014163,2]
[391095675,1760333432076,-9211.34798985,0.00014163,2]
[391095676,1760333432085,-199.22,0.00014187,2]
[391095677,1760333432096,-9552.16786547,0.00014218,2]
[391095678,1760333432106,-2000.0,0.00014258,2]
[391095679,1760333432116,-195.0,0.00014258,2]
[391095680,1760333432129,-9905.5980765,0.00014273,2]
[391095681,1760333432139,-996.38757573,0.00014297,2]
[391095682,1760333432149,-891.27,0.00014321,2]
[391095683,1760333432159,-10272.10520533,0.00014328,2]
[391095685,1760333432168,-10652.17309792,0.00014383,2]
[391095687,1760333432179,-11046.30350255,0.00014438,2]
[391095688,1760333432189,-996.38757573,0.00014448,2]
[391095689,1760333432200,-335.0,0.00014456,2]
[391095690,1760333432210,-8107.0094639,0.00014466,2]
[391095691,1760333432220,-199.64011585,0.00014466,2]
[391095692,1760333432229,-11455.01673214,0.00014493,2]
[391095693,1760333432238,-1393.68994348,0.000145,3]
[391095694,1760333432248,-1000.0,0.000145,2]
[391095695,1760333432258,-500.0,0.00014513,2]
[391095696,1760333432267,-500.0,0.00014513,2]
[391095698,1760333432277,-407.97010353,0.00014513,2]
[391095699,1760333432286,-4077.29775187,0.00014514,2]
[391095701,1760333432299,-4029.71171198,0.00014514,2]
[391095703,1760333432308,-174.95486343,0.00014527,2]
[391095705,1760333432317,-195.0,0.00014545,2]
[391095721,1760333432617,-250.0,0.00014545,2]
[391095722,1760333432628,-279.90735855,0.00014545,2]
[391095723,1760333432640,-5038.23335446,0.00014548,2]
[391095724,1760333432848,-6840.61899677,0.00014548,2]
[391095725,1760333432858,-8107.00946385,0.00014562,2]
[391095726,1760333432868,-6076.8491127,0.00014566,2]
[391095727,1760333432878,-2199.3791651,0.00014566,2]
[391095728,1760333432888,-22713.58296452,0.00014566,2]
[391095729,1760333437800,-4621.67835726,0.00014566,2]
[391095730,1760333438079,-739.528595,0.00014566,2]
[391095731,1760333438090,-1903.4859,0.00014566,2]
[391095740,1760333440044,-4257.40549162,0.00014566,2]
[391095741,1760333440091,-84790.1053342,0.00014566,2]
[391095742,1760333440102,-31887.4576853,0.00014566,2]
[391095743,1760333440112,-335.0,0.0001457,2]
[391095744,1760333440122,-151.0,0.0001458,2]
[391095745,1760333440133,-200.0,0.0001458,2]
[391095746,1760333440142,-420.25470027,0.0001458,2]
[391095747,1760333440151,-1273.57465582,0.00014582,2]
[391095748,1760333440161,-12460.18924085,0.00014589,2]
[391095749,1760333440172,-891.27,0.00014595,2]
[391095750,1760333440182,-996.38757573,0.00014599,2]
[391095751,1760333440191,-1000.0,0.000146,2]
[391095752,1760333440201,-12318.36988823,0.00014603,2]
[391095753,1760333440211,-8107.00946385,0.00014611,2]
[391095754,1760333440222,-982.0,0.00014627,2]
[391095755,1760333440232,-12774.14957409,0.00014658,2]
[391095756,1760333440242,-8107.00946385,0.00014659,2]
[391095757,1760333440251,-335.0,0.00014673,2]
[391095758,1760333440261,-8107.00946385,0.00014707,2]
[391095759,1760333440270,-151.0,0.00014711,2]
[391095760,1760333440280,-733.49541732,0.00014713,2]
[391095761,1760333440290,-13246.79310833,0.00014713,2]
[391095762,1760333440300,-180.0,0.00014718,2]
[391095763,1760333440310,-173.68111234,0.00014718,2]
[391095764,1760333440320,-1000.0,0.0001472,2]
[391095765,1760333440330,-7000.0,0.0001473,2]
[391095766,1760333440339,-2500.0,0.00014739,2]
[391095767,1760333440351,-2500.0,0.00014739,2]
[391095768,1760333440362,-2500.0,0.00014739,2]
[391095769,1760333440371,-2500.0,0.00014739,2]
[391095770,1760333440380,-2500.0,0.00014739,2]
[391095771,1760333440391,-195.0,0.00014739,2]
[391095772,1760333440400,-19349.08383845,0.0001474,2]
[391095773,1760333440411,-996.38757573,0.00014749,2]
[391095774,1760333440419,-8107.00946385,0.00014755,2]
[391095775,1760333440429,-13736.92445334,0.00014768,2]
[391095776,1760333440440,-500.0,0.00014773,2]
[391095777,1760333440452,-500.0,0.00014773,2]
[391095778,1760333440463,-150.0,0.00014773,2]
[391095779,1760333440472,-3289.48,0.00014779,2]
[391095780,1760333440481,-242.487,0.00014779,2]
[391095781,1760333440490,-3473.3541,0.0001478,2]
[391095782,1760333440501,-1000.0,0.0001478,2]
[391095783,1760333440510,-434.10478231,0.0001478,2]
[391095784,1760333440529,-170.6544991,0.0001478,2]
[391095785,1760333440549,-436.02896421,0.0001478,2]